bitfinex-derivatives/quotes_BTCF0:USTF0_20250722
["timestamp","ask_amount","ask_price","bid_price","bid_amount"]
[1753194692160,0.003,118600.0,118590.0,1.85188969]
[1753194692467,0.003,118600.0,118590.0,1.9409523]
[1753194693061,0.1803516,118630.0,118620.0,0.4476728]
[1753194693358,0.1803516,118630.0,118620.0,1.4136328]
[1753194693563,0.2050916,118630.0,118620.0,1.4136328]
[1753194693763,0.4297116,118630.0,118620.0,1.0528328]
[1753194693965,0.8357416,118630.0,118620.0,1.0528328]
[1753194694362,0.4749416,118630.0,118620.0,1.4135928]
[1753194694552,0.14646,118630.0,118620.0,1.4135928]
[1753194694856,0.2080886,118630.0,118620.0,1.4135928]
[1753194695059,0.03959,118630.0,118620.0,1.4135928]
[1753194695453,0.2080886,118630.0,118620.0,1.4135928]
[1753194695658,0.2100886,118630.0,118620.0,1.4135928]
[1753194696160,0.3199586,118630.0,118620.0,1.4135928]
[1753194696363,0.4347086,118630.0,118620.0,1.4135928]
[1753194696559,0.3199586,118630.0,118620.0,1.4135928]
[1753194696762,0.2100886,118630.0,118620.0,1.4135928]
[1753194696958,0.04159,118630.0,118620.0,1.83479303]
[1753194697160,0.02974,118630.0,118620.0,1.4135928]
[1753194697359,0.02974,118630.0,118620.0,1.83479303]
[1753194697667,0.1982386,118630.0,118620.0,1.83479303]
[1753194697862,0.2100886,118630.0,118620.0,1.4135928]
[1753194698052,0.2870386,118630.0,118620.0,0.8084728]
[1753194698259,1.26367883,118630.0,118620.0,0.27916]
[1753194698460,1.26367883,118630.0,118620.0,0.17141]
[1753194698657,0.430537,118610.0,118600.0,1.7798762]
[1753194698962,0.317087,118610.0,118600.0,2.3848762]
[1753194699160,0.317087,118610.0,118600.0,1.9453162]
[1753194699370,0.317087,118610.0,118600.0,2.5508362]
[1753194699567,0.03684,118610.0,118600.0,3.33283643]
[1753194699759,0.2474927,118620.0,118610.0,0.279717]
[1753194699967,0.02497,118620.0,118610.0,1.22715723]
[1753194700168,0.1934828,118620.0,118610.0,1.24411457]
[1753194700473,0.1934828,118620.0,118610.0,0.82291434]
[1753194700967,0.2053528,118620.0,118610.0,0.82291434]
[1753194701164,0.2053528,118620.0,118610.0,1.42915434]
[1753194701369,0.4305228,118620.0,118610.0,1.42895434]
[1753194701868,0.3170728,118620.0,118610.0,1.42895434]
[1753194702068,0.2053528,118620.0,118610.0,1.42895434]
[1753194702272,0.03784,118620.0,118610.0,1.42895434]
[1753194702471,0.2063528,118620.0,118610.0,1.42895434]
[1753194704370,0.1695128,118620.0,118610.0,1.85015457]
[1753194704671,0.001,118620.0,118610.0,1.85015457]
[1753194704970,0.002,118620.0,118610.0,1.85015457]
[1753194705972,0.002,118620.0,118610.0,1.42895434]
[1753194706268,0.002,118620.0,118610.0,1.85015457]
[1753194706974,0.002,118620.0,118610.0,1.94616029]
[1753194708570,0.0002,118630.0,118620.0,0.2797028]
[1753194708875,0.29812276,118640.0,118630.0,0.4451286]
[1753194709075,0.29792276,118640.0,118630.0,1.0506886]
[1753194709776,0.57006276,118640.0,118630.0,1.0506886]
[1753194710173,1.36887639,118640.0,118630.0,0.77084]
[1753194710377,1.36887639,118640.0,118610.0,0.46201924]
[1753194710378,0.1684986,118630.0,118620.0,0.16544]
[1753194710678,0.4774928,118620.0,118610.0,0.18239734]
[1753194710874,0.89869303,118620.0,118610.0,0.18239734]
[1753194711074,0.89869303,118620.0,118610.0,0.78791734]
[1753194711279,0.89869303,118620.0,118610.0,0.95644434]
[1753194711469,0.4774928,118620.0,118610.0,0.95644434]
[1753194711779,0.89869303,118620.0,118610.0,0.98644434]
[1753194711974,0.89869303,118620.0,118610.0,1.06763434]
[1753194712176,0.4774928,118620.0,118610.0,1.06763434]
[1753194712980,0.89869303,118620.0,118610.0,1.06763434]
[1753194713179,0.91557829,118620.0,118610.0,1.06763434]
[1753194713381,0.49437806,118620.0,118610.0,1.06763434]
[1753194713584,0.33395806,118620.0,118610.0,1.42843434]
[1753194713880,0.2053528,118620.0,118610.0,1.06763434]
[1753194714279,0.22225464,118620.0,118610.0,1.42843434]
[1753194714580,0.22225464,118620.0,118610.0,1.06763434]
[1753194714780,0.33397464,118620.0,118610.0,1.06763434]
[1753194714979,0.49439464,118620.0,118610.0,1.06763434]
[1753194715975,0.33397464,118620.0,118610.0,1.42843434]
[1753194716178,0.33397464,118620.0,118610.0,1.06763434]
[1753194716377,0.44842464,118620.0,118610.0,1.06763434]
[1753194717683,0.44842464,118620.0,118610.0,1.42843434]
[1753194717886,0.33497464,118620.0,118610.0,1.42843434]
[1753194718780,0.33497464,118620.0,118610.0,1.06763434]
[1753194718985,0.49539464,118620.0,118610.0,1.06763434]
[1753194719381,0.91659487,118620.0,118610.0,0.46211434]
[1753194719582,1.27739487,118620.0,118610.0,0.78775734]
[1753194719783,1.27739487,118620.0,118610.0,0.62231734]
[1753194719986,1.27739487,118620.0,118610.0,0.62223734]
[1753194720378,0.477507,118610.0,118600.0,1.21286]
[1753194720582,0.4775212,118600.0,118590.0,0.25080556]
[1753194720782,0.89872143,118600.0,118590.0,0.25080556]
[1753194720989,1.27643862,118600.0,118590.0,0.69072556]
[1753194721385,1.27643862,118600.0,118590.0,0.60536]
[1753194721688,1.44507862,118600.0,118590.0,0.60536]
[1753194722288,1.44507862,118600.0,118590.0,0.60736]
[1753194722895,1.44507862,118600.0,118590.0,0.60836]
[1753194723397,1.44507862,118600.0,118590.0,0.58336]
[1753194726902,1.44507862,118600.0,118590.0,0.7984954]
[1753194727101,1.44507862,118600.0,118590.0,0.7488]
[1753194727401,0.91563862,118600.0,118590.0,1.0407954]
[1753194728498,1.27643862,118600.0,118590.0,0.7488]
[1753194728896,1.27643862,118600.0,118590.0,1.0373354]
[1753194729107,0.91563862,118600.0,118590.0,1.0373354]
[1753194729400,0.91563862,118600.0,118590.0,0.86878]
[1753194729401,1.27643862,118600.0,118590.0,0.86878]
[1753194729599,1.27643862,118600.0,118590.0,0.8563]
[1753194729798,1.27643862,118600.0,118590.0,0.60812]
[1753194730200,1.27643862,118600.0,118590.0,0.65488]
[1753194730596,1.27643862,118600.0,118590.0,0.60812]
[1753194730806,0.4817654,118590.0,118580.0,0.06759109]
[1753194731010,0.4556098,118570.0,118560.0,0.16831]
[1753194731304,1.32190803,118570.0,118560.0,0.65188]
[1753194731699,1.43238803,118570.0,118560.0,0.60512]
[1753194732203,1.43238803,118570.0,118560.0,0.65188]
[1753194732401,1.43238803,118570.0,118560.0,1.0620081]
[1753194732604,1.07158803,118570.0,118560.0,1.0620081]
[1753194733409,1.02308803,118570.0,118560.0,1.0853581]
[1753194733705,0.90317803,118570.0,118560.0,1.15160643]
[1753194734209,0.3293488,118570.0,118560.0,1.15260643]
[1753194734502,0.3293488,118570.0,118560.0,1.51340643]
[1753194734703,0.2107308,118570.0,118560.0,1.51340643]
[1753194734903,0.64363103,118570.0,118560.0,1.15260643]
[1753194735103,0.66625103,118570.0,118560.0,1.15260643]
[1753194735606,0.94514103,118570.0,118560.0,1.12925643]
[1753194735807,0.48402567,118570.0,118560.0,1.12925643]
[1753194736105,0.36411567,118570.0,118560.0,1.15260643]
[1753194736512,0.48402567,118570.0,118560.0,1.15260643]
[1753194736709,0.9052259,118570.0,118560.0,1.15260643]
[1753194736907,0.9052259,118570.0,118560.0,0.96065833]
[1753194737108,0.9537259,118570.0,118560.0,1.12925643]
[1753194737404,1.3145259,118570.0,118560.0,1.12925643]
[1753194737708,1.3145259,118570.0,118560.0,0.35553833]
[1753194737910,1.3145259,118570.0,118560.0,0.87315833]
[1753194738110,0.9537259,118570.0,118560.0,0.87315833]
[1753194738312,1.3145259,118570.0,118560.0,0.84071833]
[1753194738511,1.3145259,118570.0,118560.0,0.67240833]
[1753194738715,1.4832059,118570.0,118560.0,0.60616]
[1753194739215,1.4832059,118570.0,118560.0,0.001]
[1753194739706,0.2907781,118560.0,118550.0,0.01722888]
[1753194739918,0.4592023,118550.0,118540.0,0.77351]
[1753194740108,1.26382253,118550.0,118540.0,0.77351]
[1753194740509,1.26382253,118550.0,118540.0,1.0621165]
[1753194740710,0.90302253,118550.0,118540.0,1.0621165]
[1753194741010,1.26382253,118550.0,118540.0,0.65196]
[1753194741209,1.26382253,118550.0,118540.0,0.6052]
[1753194741814,1.26382253,118550.0,118540.0,0.6062]
[1753194742205,1.26382253,118550.0,118540.0,0.001]
[1753194742812,1.26382253,118550.0,118540.0,0.004]
[1753194743208,1.26382253,118550.0,118540.0,0.17231]
[1753194743604,1.26382253,118550.0,118540.0,0.05076]
[1753194743810,1.26382253,118550.0,118540.0,0.004]
[1753194744409,1.86906253,118550.0,118540.0,0.004]
[1753194744608,1.86906253,118550.0,118540.0,0.05076]
[1753194745309,1.86910253,118550.0,118540.0,0.05076]
[1753194746610,1.86910253,118550.0,118540.0,0.004]
[1753194747714,0.1686407,118530.0,118510.0,0.2338259]
[1753194747913,0.90306523,118520.0,118510.0,1.1044004]
[1753194748110,1.26386523,118520.0,118510.0,0.89377]
[1753194748310,1.26386523,118520.0,118510.0,0.60548]
[1753194748510,1.26386523,118520.0,118510.0,0.0002]
[1753194748709,1.26386523,118520.0,118510.0,0.16851]
[1753194749813,1.26386523,118520.0,118510.0,0.0002]
[1753194750116,1.26386523,118520.0,118510.0,0.17151]
[1753194750319,1.26386523,118520.0,118510.0,0.04996]
[1753194750515,1.26386523,118520.0,118510.0,0.0032]
[1753194750909,1.26386523,118520.0,118510.0,0.0052]
[1753194751612,1.26386523,118520.0,118510.0,0.05196]
[1753194751917,1.26386523,118520.0,118510.0,0.17351]
[1753194752113,1.26386523,118520.0,118510.0,0.05196]
[1753194752312,1.26386523,118520.0,118510.0,0.0002]
[1753194752514,1.26386523,118520.0,118510.0,0.0012]
[1753194753310,1.26386523,118520.0,118510.0,0.3381792]
[1753194753512,1.26386523,118520.0,118510.0,0.4581592]
[1753194753713,0.563775,118520.0,118510.0,1.0868292]
[1753194754114,0.541155,118520.0,118510.0,1.0868292]
[1753194755011,0.168655,118520.0,118510.0,1.0868292]
[1753194755617,0.2031708,118530.0,118520.0,0.4802958]
[1753194755919,0.0002,118530.0,118520.0,0.4804958]
[1753194756214,0.01881462,118540.0,118530.0,0.2437016]
[1753194756415,0.01881462,118540.0,118530.0,1.4464016]
[1753194757214,0.18744202,118540.0,118530.0,1.4464016]
[1753194757620,0.19144202,118540.0,118530.0,1.4464016]
[1753194758321,0.2082574,118540.0,118530.0,1.4464016]
[1753194758716,0.2082574,118540.0,118530.0,1.0856016]
[1753194759220,0.1803274,118540.0,118530.0,1.0856016]
[1753194759520,0.1803274,118540.0,118530.0,1.0906016]
[1753194759714,0.1803274,118540.0,118530.0,1.4514016]
[1753194759913,0.1686274,118540.0,118530.0,1.4514016]
[1753194760110,0.1686274,118540.0,118530.0,1.0906016]
[1753194761216,0.1686274,118540.0,118530.0,1.0905216]
[1753194761217,1.20595763,118540.0,118530.0,1.0905216]
[1753194761417,1.25259763,118540.0,118530.0,1.0671716]
[1753194761621,0.73060763,118540.0,118530.0,1.0912016]
[1753194761916,0.62523763,118540.0,118530.0,1.0912016]
[1753194762321,0.60130763,118540.0,118530.0,1.0912016]
[1753194762821,0.60130763,118540.0,118530.0,1.0872016]
[1753194763222,0.81498763,118540.0,118530.0,1.0862016]
[1753194763522,1.25259763,118540.0,118530.0,0.89649]
[1753194763724,1.25259763,118540.0,118530.0,0.80895]
[1753194764122,1.25259763,118540.0,118530.0,0.9775916]
[1753194764319,1.25259763,118540.0,118530.0,0.9755916]
[1753194764623,1.26958222,118540.0,118530.0,0.9880016]
[1753194764921,1.26958222,118540.0,118530.0,0.81936]
[1753194765114,1.26958222,118540.0,118530.0,0.9880016]
[1753194765515,1.26958222,118540.0,118530.0,0.9870016]
[1753194765715,1.26958556,118540.0,118530.0,0.9870016]
[1753194765916,1.26958556,118540.0,118530.0,0.81736]
[1753194766219,1.27058556,118540.0,118530.0,0.81736]
[1753194766421,1.27158556,118540.0,118530.0,0.81736]
[1753194766922,1.27158556,118540.0,118530.0,0.9860016]
[1753194767121,1.27158556,118540.0,118530.0,1.0644616]
[1753194767320,0.74959556,118540.0,118530.0,1.0884916]
[1753194767518,0.62723763,118540.0,118530.0,1.0884916]
[1753194767718,1.20795763,118540.0,118530.0,0.91985]
[1753194767921,1.20795763,118540.0,118530.0,1.0884916]
[1753194768127,1.11039985,118540.0,118530.0,1.0884916]
[1753194768318,1.09340763,118540.0,118530.0,1.0884916]
[1753194768623,0.85038843,118540.0,118530.0,0.89574]
[1753194768818,1.27158866,118540.0,118530.0,0.89574]
[1753194769216,1.27158866,118540.0,118530.0,0.16831]
[1753194769415,1.27158866,118540.0,118530.0,0.04676]
[1753194769616,1.27158866,118540.0,118530.0,0.65188]
[1753194770219,1.27158866,118540.0,118510.0,0.18115338]
[1753194770220,0.2314,118530.0,118510.0,0.18115338]
[1753194770415,1.61342613,118520.0,118510.0,0.76893]
[1753194770620,0.4706401,118510.0,118500.0,0.20915571]
[1753194770920,1.25264033,118510.0,118500.0,0.16385]
[1753194771222,1.25264033,118510.0,118500.0,0.28608]
[1753194771420,1.25264033,118510.0,118500.0,0.16385]
[1753194771820,1.26129265,118510.0,118500.0,0.16385]
[1753194773231,1.26129265,118510.0,118500.0,0.28808]
[1753194773429,1.26129265,118510.0,118500.0,0.29128]
[1753194774325,1.86633265,118510.0,118500.0,0.29128]
[1753194775128,1.86633265,118510.0,118500.0,0.4599643]
[1753194776130,1.26129265,118510.0,118500.0,0.4599643]
[1753194777235,1.26129265,118510.0,118500.0,0.29128]
[1753194777429,1.26129265,118510.0,118500.0,0.4599643]
[1753194779333,1.86633265,118510.0,118500.0,0.29128]
[1753194779534,1.86633265,118510.0,118500.0,0.4599643]
[1753194779736,1.86633265,118510.0,118500.0,0.29128]
[1753194780137,1.88332998,118510.0,118500.0,0.29128]
[1753194781340,1.27828998,118510.0,118500.0,0.4599643]
[1753194781540,0.61000265,118510.0,118500.0,0.4839943]
[1753194782130,0.63393265,118510.0,118500.0,0.31531]
[1753194782337,0.63393265,118510.0,118500.0,0.4599643]
[1753194782338,1.26129265,118510.0,118500.0,0.4599643]
[1753194782535,0.47929242,118510.0,118500.0,0.4599643]
[1753194782833,0.90049265,118510.0,118500.0,0.4599643]
[1753194783232,1.26129265,118510.0,118500.0,0.4599643]
[1753194783437,1.26129265,118510.0,118500.0,0.29128]
[1753194784342,1.26129265,118510.0,118500.0,0.4599643]
[1753194785644,0.90049265,118510.0,118500.0,0.4599643]
[1753194785841,1.26129265,118510.0,118500.0,0.4599643]
[1753194786039,0.73930265,118510.0,118500.0,0.4839943]
[1753194786241,0.21273242,118510.0,118500.0,0.4839943]
[1753194786441,0.18880242,118510.0,118500.0,0.4839943]
[1753194786837,0.61000265,118510.0,118500.0,0.4839943]
[1753194787351,1.12000373,118520.0,118510.0,0.2909001]
[1753194787645,1.11980373,118520.0,118510.0,1.0838601]
[1753194788542,1.11980373,118520.0,118510.0,1.0848601]
[1753194789243,0.7100835,118520.0,118510.0,1.0848601]
[1753194789439,1.13128373,118520.0,118510.0,1.0848601]
[1753194789634,1.1395931,118520.0,118510.0,1.0868601]
[1753194791446,1.2990331,118520.0,118510.0,1.0627501]
[1753194791742,1.2990331,118520.0,118510.0,0.65736]
[1753194791941,2.08953941,118520.0,118510.0,0.0032]
[1753194792143,0.1686701,118510.0,118500.0,0.60476]
[1753194792349,1.26798492,118510.0,118500.0,0.60476]
[1753194792836,1.26798492,118510.0,118500.0,0.7734443]
[1753194793037,1.26798492,118510.0,118500.0,0.60476]
[1753194793242,1.26798492,118510.0,118500.0,0.65473]
[1753194793648,1.26798492,118510.0,118500.0,0.65673]
[1753194793846,1.26798492,118510.0,118500.0,0.65873]
[1753194794741,1.26798492,118510.0,118500.0,0.60876]
[1753194795950,1.26798492,118510.0,118500.0,0.65873]
[1753194796650,1.26798492,118510.0,118500.0,0.8274143]
[1753194796842,1.26798492,118510.0,118500.0,1.0622243]
[1753194797243,1.26798492,118510.0,118500.0,0.89354]
[1753194799050,1.26798492,118510.0,118500.0,1.0863743]
[1753194799251,1.26798492,118510.0,118500.0,0.89354]
[1753194800252,1.26798492,118510.0,118500.0,1.0622243]
[1753194800661,1.26798492,118510.0,118500.0,0.89354]
[1753194801154,1.26798492,118510.0,118500.0,1.0622243]
[1753194802449,1.22056492,118510.0,118500.0,1.0863743]
[1753194802753,1.10854492,118510.0,118500.0,1.0863743]
[1753194803049,1.22056492,118510.0,118500.0,1.0863743]
[1753194803450,0.19714469,118510.0,118500.0,1.0863743]
[1753194803856,0.1686701,118510.0,118500.0,1.2128808]
[1753194804056,0.18568694,118510.0,118500.0,1.5736808]
[1753194804352,0.7548614,118520.0,118510.0,0.4776001]
[1753194804555,1.15693952,118520.0,118510.0,0.4776001]
[1753194804755,0.79613952,118520.0,118510.0,0.4776001]
[1753194805158,0.50097182,118520.0,118510.0,0.4776001]
[1753194805344,1.07893182,118520.0,118510.0,0.4786001]
[1753194805653,1.12635182,118520.0,118510.0,0.4786001]
[1753194806054,1.12635182,118520.0,118510.0,0.4796001]
[1753194806249,0.71813182,118520.0,118510.0,0.4796001]
[1753194806452,0.46523182,118520.0,118510.0,0.4796001]
[1753194807053,0.50097182,118520.0,118510.0,0.4796001]
[1753194807255,0.50097182,118520.0,118510.0,0.31093]
[1753194807455,0.03572222,118520.0,118510.0,0.31093]
[1753194807853,0.03572222,118520.0,118510.0,0.67173]
[1753194808253,0.0187041,118520.0,118510.0,0.67173]
[1753194808456,0.03573012,118520.0,118510.0,0.67173]
[1753194810557,0.0187041,118520.0,118510.0,0.67173]
[1753194810758,0.03593714,118520.0,118510.0,0.67193]
[1753194812054,0.03593714,118520.0,118510.0,0.84068199]
[1753194812359,0.03593714,118520.0,118510.0,0.92985855]
[1753194814155,0.83627087,118540.0,118530.0,0.07494]
[1753194814345,0.83627087,118540.0,118530.0,0.91301]
[1753194815155,0.05427064,118540.0,118530.0,0.91301]
[1753194815358,0.06292602,118540.0,118530.0,0.91301]
[1753194815659,0.48612625,118540.0,118530.0,0.91301]
[1753194816055,0.59126625,118540.0,118530.0,0.91301]
[1753194816249,0.70328625,118540.0,118530.0,0.91301]
[1753194816449,0.70428625,118540.0,118530.0,0.91301]
[1753194816761,0.06592602,118540.0,118530.0,0.91301]
[1753194816965,0.02153064,118540.0,118530.0,0.91301]
[1753194818654,0.02153064,118540.0,118530.0,1.41124349]
[1753194819055,0.02153064,118540.0,118530.0,1.36581786]
[1753194819362,0.40319658,118560.0,118550.0,0.1208]
[1753194819562,0.40319658,118560.0,118550.0,0.90823]
[1753194819864,0.83582681,118560.0,118550.0,0.93850876]
[1753194820256,1.05996681,118560.0,118550.0,0.90815]
[1753194820459,1.06296681,118560.0,118550.0,0.90815]
[1753194820658,0.81242633,118560.0,118550.0,0.90815]
[1753194820856,0.02351,118610.0,118600.0,0.11398]
[1753194821055,0.47688,118620.0,118610.0,0.28166]
[1753194821056,0.37223,118620.0,118610.0,0.28166]
[1753194821257,0.04319876,118630.0,118620.0,0.30431]
[1753194821552,0.04319876,118630.0,118620.0,0.97642441]
[1753194821754,0.03494,118630.0,118620.0,0.97642441]
[1753194822061,0.03494,118630.0,118620.0,0.97042441]
[1753194822562,0.01543,118630.0,118620.0,0.97042441]
[1753194822766,0.004,118630.0,118620.0,0.97042441]
[1753194822960,0.004,118630.0,118620.0,0.96542441]
[1753194823161,0.004,118630.0,118620.0,0.36158441]
[1753194823358,0.004,118630.0,118620.0,0.96522441]
[1753194823558,0.004,118630.0,118620.0,1.22718721]
[1753194823768,0.004,118630.0,118620.0,1.22818721]
[1753194824157,0.3608,118640.0,118620.0,1.05767721]
[1753194824364,0.3608,118640.0,118630.0,0.19033]
[1753194824764,0.41484355,118650.0,118640.0,0.04688]
[1753194825063,0.41484355,118650.0,118640.0,0.90791]
[1753194825866,0.41484355,118650.0,118640.0,0.90991]
[1753194826167,0.39133355,118650.0,118640.0,0.90991]
[1753194826668,0.39133355,118650.0,118640.0,0.90979544]
[1753194827062,0.41484355,118650.0,118640.0,0.90979544]
[1753194827263,0.39133355,118650.0,118640.0,0.90979544]
[1753194827466,0.37990355,118650.0,118640.0,0.90979544]
[1753194827968,0.37990355,118650.0,118640.0,0.91059544]
[1753194828157,0.37990355,118650.0,118640.0,0.91055544]
[1753194830068,0.37990355,118650.0,118640.0,0.91047544]
[1753194830666,0.40341355,118650.0,118640.0,0.91047544]
[1753194830968,0.41484355,118650.0,118640.0,0.91047544]
[1753194831363,1.06018378,118650.0,118640.0,0.30719544]
[1753194831570,1.10658378,118650.0,118640.0,0.88774544]
[1753194831766,1.06018378,118650.0,118640.0,0.88774544]
[1753194831969,1.06018378,118650.0,118640.0,0.91039544]
[1753194832666,1.10658378,118650.0,118640.0,0.87556544]
[1753194833058,1.10658378,118650.0,118640.0,0.65284544]
[1753194833871,1.10658378,118650.0,118640.0,0.76682544]
[1753194834169,1.10658378,118650.0,118640.0,0.16374544]
[1753194834469,1.10658378,118650.0,118640.0,0.65284544]
[1753194835267,1.46738378,118650.0,118640.0,0.76674544]
[1753194835468,0.25908,118630.0,118620.0,0.36703107]
[1753194835670,1.08748023,118630.0,118620.0,0.84923107]
[1753194835867,1.08748023,118630.0,118620.0,0.01709666]
[1753194836068,1.08748023,118630.0,118620.0,0.62005666]
[1753194836774,1.08748023,118630.0,118620.0,0.60496]
[1753194836968,0.66628,118630.0,118620.0,0.60496]
[1753194837170,1.08748023,118630.0,118620.0,0.60696]
[1753194840677,1.08748023,118630.0,118620.0,0.19521]
[1753194840871,1.08748023,118630.0,118620.0,0.79809]
[1753194841376,1.08748023,118630.0,118620.0,0.05088]
[1753194841577,1.08748023,118630.0,118620.0,0.60688]
[1753194842473,1.08748023,118630.0,118620.0,0.004]
[1753194842672,0.16248,118620.0,118600.0,0.16086]
[1753194842878,1.08748023,118610.0,118600.0,0.28166]
[1753194843078,1.08748023,118610.0,118600.0,0.8845]
[1753194844174,1.08748023,118610.0,118600.0,0.8855]
[1753194844679,1.08748023,118610.0,118600.0,0.8885]
[1753194844976,1.04108023,118610.0,118600.0,0.8895]
[1753194845180,1.04108023,118610.0,118600.0,0.30931]
[1753194845479,0.61988,118610.0,118600.0,0.91111]
[1753194845685,0.61988,118610.0,118600.0,0.91411]
[1753194845882,0.61988,118610.0,118600.0,0.98034993]
[1753194846371,1.04108023,118610.0,118600.0,0.97734993]
[1753194846681,0.5038,118610.0,118600.0,0.97834993]
[1753194846880,0.0002,118620.0,118600.0,0.97834993]
[1753194847078,0.03514,118620.0,118610.0,0.30431]
[1753194847277,0.03494,118620.0,118610.0,0.30431]
[1753194847785,0.22637,118620.0,118610.0,0.30431]
[1753194848081,0.11029,118620.0,118610.0,0.90707]
[1753194848278,0.4747,118630.0,118610.0,0.94655485]
[1753194848484,0.39635,118630.0,118620.0,0.30924]
[1753194848683,0.39615,118630.0,118620.0,0.30924]
[1753194848979,0.58589,118630.0,118620.0,0.30924]
[1753194849183,1.03875023,118630.0,118620.0,0.30924]
[1753194849585,0.67795023,118630.0,118620.0,0.30924]
[1753194849780,0.56425023,118630.0,118620.0,0.30924]
[1753194850186,0.25675,118630.0,118620.0,0.33181373]
[1753194850880,0.25675,118630.0,118620.0,0.33281373]
[1753194851089,1.08590023,118630.0,118620.0,0.27445]
[1753194851287,1.08590023,118630.0,118620.0,0.65306]
[1753194852485,1.08590023,118630.0,118620.0,0.76618]
[1753194853484,1.08590023,118630.0,118620.0,1.0568928]
[1753194853683,0.03535,118630.0,118620.0,1.0813928]
[1753194853888,0.93125023,118640.0,118630.0,0.2794086]
[1753194854191,0.45655023,118640.0,118630.0,0.4777386]
[1753194854588,0.03535,118640.0,118630.0,0.4777386]
[1753194854783,0.41545355,118650.0,118640.0,0.2906852]
[1753194854983,0.05445355,118650.0,118640.0,1.0802852]
[1753194855582,0.69705378,118650.0,118640.0,1.0802852]
[1753194855981,0.54362784,118660.0,118650.0,0.168471]
[1753194856178,0.46507784,118660.0,118650.0,0.477711]
[1753194856582,0.54111784,118660.0,118650.0,0.477711]
[1753194856786,0.68647784,118660.0,118650.0,0.477711]
[1753194856991,0.68647784,118660.0,118650.0,0.91172]
[1753194857293,0.68647784,118660.0,118650.0,1.0801911]
[1753194857984,0.74123474,118660.0,118650.0,1.0801911]
[1753194858389,0.21233451,118660.0,118650.0,1.0801911]
[1753194858889,1.26288474,118660.0,118650.0,0.27345]
[1753194859090,1.26288474,118660.0,118650.0,0.6024]
[1753194859288,0.1684711,118650.0,118640.0,0.16254]
[1753194859482,0.1684853,118640.0,118630.0,0.16014759]
[1753194859686,1.24287553,118640.0,118630.0,0.69880759]
[1753194859986,1.24287553,118640.0,118630.0,0.81192759]
[1753194860190,1.24287553,118640.0,118630.0,0.64938759]
[1753194860386,1.84523553,118640.0,118630.0,0.0302524]
[1753194860989,0.4723995,118630.0,118620.0,0.04541815]
[1753194861292,1.25439973,118630.0,118620.0,0.04541815]
[1753194861890,1.25439973,118630.0,118620.0,0.00938285]
[1753194862290,1.25439973,118630.0,118620.0,0.00200005]
[1753194862494,0.4485879,118610.0,118600.0,0.71229753]
[1753194862693,1.25442813,118610.0,118600.0,0.12256309]
[1753194863196,1.25442813,118610.0,118600.0,0.23568309]
[1753194863597,1.25442813,118610.0,118600.0,0.2455664]
[1753194863793,1.25442813,118610.0,118600.0,0.18500887]
[1753194864100,1.61522813,118610.0,118600.0,0.01258556]
[1753194864588,1.61522813,118610.0,118600.0,0.02158556]
[1753194864790,1.61522813,118610.0,118600.0,0.009]
[1753194864989,1.1940279,118610.0,118600.0,0.05842]
[1753194865190,1.61522813,118610.0,118600.0,0.17783]
[1753194865389,1.1468779,118610.0,118600.0,0.477782]
[1753194865591,1.0331779,118610.0,118600.0,0.30924]
[1753194865793,0.9016379,118610.0,118600.0,0.477782]
[1753194865997,0.8901279,118610.0,118600.0,0.355582]
[1753194867798,0.1685279,118610.0,118600.0,0.355582]
[1753194868398,0.1685279,118610.0,118600.0,0.356582]
[1753194868899,0.1685279,118610.0,118600.0,0.357582]
[1753194869099,0.27202603,118620.0,118610.0,0.3555679]
[1753194869295,0.22969543,118620.0,118610.0,0.9577279]
[1753194869492,0.22969543,118620.0,118610.0,1.0799279]
[1753194869889,0.24120543,118620.0,118610.0,1.0799279]
[1753194870199,0.95479566,118620.0,118610.0,1.0554279]
[1753194870595,0.90764566,118620.0,118610.0,1.0799279]
[1753194870900,0.95479566,118620.0,118610.0,0.9114]
[1753194871100,0.95479566,118620.0,118610.0,1.0554279]
[1753194871296,0.22969543,118620.0,118610.0,1.0799279]
[1753194871504,0.26504543,118620.0,118610.0,1.0809279]
[1753194872999,0.26504543,118620.0,118610.0,1.0819279]
[1753194873803,0.22969543,118620.0,118610.0,1.0819279]
[1753194877504,0.24120543,118620.0,118610.0,1.0819279]
[1753194877903,0.26504543,118620.0,118610.0,1.0819279]
[1753194880509,0.26504543,118620.0,118610.0,1.4427279]
[1753194880710,0.26504543,118620.0,118610.0,1.0819279]
[1753194881912,0.68624566,118620.0,118610.0,1.0819279]
[1753194882907,0.68624566,118620.0,118610.0,0.4797679]
[1753194883109,1.30113566,118620.0,118610.0,0.79948]
[1753194884416,1.30113566,118620.0,118610.0,0.79848]
[1753194884616,0.87993543,118620.0,118610.0,0.79848]
[1753194884918,1.30113566,118620.0,118610.0,0.9785077]
[1753194885111,1.30113566,118620.0,118610.0,1.0511977]
[1753194885311,1.30113566,118620.0,118610.0,1.0501977]
[1753194885512,1.30113566,118620.0,118610.0,0.16254]
[1753194885718,1.30113566,118620.0,118610.0,0.65106]
[1753194888318,0.2839078,118610.0,118600.0,0.23655517]
[1753194888619,0.87929803,118610.0,118600.0,1.00669717]
[1753194888820,0.87929803,118610.0,118600.0,0.92234517]
[1753194889118,1.24009803,118610.0,118600.0,1.09088727]
[1753194889319,1.24009803,118610.0,118600.0,0.92234517]
[1753194889517,1.24009803,118610.0,118600.0,0.04642517]
[1753194890019,1.84165803,118610.0,118600.0,0.04742517]
[1753194890614,1.84165803,118610.0,118600.0,0.002]
[1753194890917,1.84165803,118610.0,118600.0,0.03229177]
[1753194893017,0.7735978,118610.0,118600.0,0.4708521]
[1753194893212,0.6678178,118610.0,118600.0,0.51627727]
[1753194893416,0.5648078,118610.0,118600.0,0.51627727]
[1753194893620,1.07871316,118620.0,118610.0,0.4688378]
[1753194893621,0.24225813,118620.0,118610.0,0.4688378]
[1753194893921,0.18755443,118620.0,118610.0,1.47651079]
[1753194895023,0.01904083,118620.0,118610.0,1.47651079]
[1753194895223,0.18755453,118620.0,118610.0,1.47651079]
[1753194895525,0.01904083,118620.0,118610.0,1.47651079]
[1753194896023,0.18755443,118620.0,118610.0,1.47651079]
[1753194896715,0.01904083,118620.0,118610.0,1.89871102]
[1753194897121,0.18755453,118620.0,118610.0,1.47851079]
[1753194897324,0.01904083,118620.0,118610.0,1.47851079]
[1753194897925,0.18755443,118620.0,118610.0,1.47851079]
[1753194901121,0.01904083,118620.0,118610.0,1.47851079]
[1753194901319,0.18755443,118620.0,118610.0,1.47851079]
[1753194901518,0.01904083,118620.0,118610.0,1.47851079]
[1753194901730,0.1684862,118640.0,118630.0,0.5530395]
[1753194902027,1.19475643,118640.0,118630.0,0.33059796]
[1753194902227,1.24005643,118640.0,118630.0,1.07522736]